bitfinex-derivatives/quotes_ETHF0:USTF0_20250708
["timestamp","ask_amount","ask_price","bid_price","bid_amount"]
[1751995778601,29.7870913,2610.6,2610.5,0.56130136]
[1751995778799,29.7870913,2610.6,2610.5,1.20300136]
[1751995779101,29.7870913,2610.6,2610.5,1.96902136]
[1751995779693,29.7780913,2610.6,2610.5,1.96902136]
[1751995779896,29.1193913,2610.6,2610.5,1.32732136]
[1751995780106,29.7780913,2610.6,2610.5,1.20300136]
[1751995780599,29.7780913,2610.6,2610.5,1.96902136]
[1751995780802,29.7780913,2610.6,2610.5,1.32732136]
[1751995780997,29.7780913,2610.6,2610.5,1.20300136]
[1751995781300,29.7780913,2610.6,2610.5,1.32732136]
[1751995781498,1.6770713,2610.6,2610.5,1.96902136]
[1751995781801,27.327,2610.9,2610.7,0.76594]
[1751995782000,0.76598,2610.8,2610.7,0.76594]
[1751995782193,28.75068,2610.8,2610.7,1.36461827]
[1751995782396,27.326,2610.8,2610.7,1.36461827]
[1751995782592,28.09194,2610.8,2610.7,1.36461827]
[1751995782798,28.75064,2610.8,2610.7,1.36464827]
[1751995783102,28.09194,2610.8,2610.7,1.36465544]
[1751995783501,28.75064,2610.8,2610.7,1.36465544]
[1751995783903,28.75064,2610.8,2610.7,0.59868544]
[1751995784096,0.76597,2610.7,2610.6,1.2343536]
[1751995784292,0.76597,2610.7,2610.6,0.76597]
[1751995784497,0.76599,2610.6,2610.5,1.436429]
[1751995784692,0.76602,2610.5,2610.4,3.2078]
[1751995784895,0.76611,2610.3,2610.1,7.34420464]
[1751995785096,3.31199,2610.5,2610.2,0.76609]
[1751995785299,1.42478,2610.3,2610.2,1.40779]
[1751995786002,1.42478,2610.3,2610.2,0.6417]
[1751995786192,28.73978,2610.3,2610.2,0.6417]
[1751995787392,28.73978,2610.3,2610.2,1.40781]
[1751995787593,27.315,2610.3,2610.2,1.40781]
[1751995787998,28.73978,2610.3,2610.2,1.40781]
[1751995788198,28.08108,2610.3,2610.2,1.40781]
[1751995788395,28.73978,2610.3,2610.2,1.40781]
[1751995789905,28.08108,2610.3,2610.2,2.34761]
[1751995790095,27.315,2610.3,2610.2,2.34761]
[1751995790301,27.315,2610.3,2610.2,2.34151]
[1751995790502,27.315,2610.3,2610.2,3.78861]
[1751995791603,27.315,2610.3,2610.2,5.44163877]
[1751995791908,28.7009,2610.5,2610.4,0.76605]
[1751995792103,0.76598,2610.7,2610.6,0.76599]
[1751995792296,28.73458,2610.7,2610.6,2.41901877]
[1751995792498,29.71018,2610.7,2610.6,3.05461877]
[1751995793006,28.73458,2610.7,2610.6,3.05461877]
[1751995793209,28.73458,2610.7,2610.6,2.13496055]
[1751995793404,28.73458,2610.7,2610.6,2.90093055]
[1751995793709,1.43358,2610.7,2610.6,2.90093055]
[1751995793909,1.4518,2610.9,2610.8,0.76594]
[1751995794203,30.18231,2610.9,2610.8,1.40154]
[1751995794604,30.18231,2610.9,2610.8,0.76594]
[1751995794806,30.18231,2610.9,2610.8,1.40154]
[1751995796307,2.1194,2610.9,2610.8,1.40154]
[1751995796513,30.18031,2610.9,2610.8,1.40154]
[1751995797011,58.3778,2611.3,2611.2,0.76582]
[1751995797202,58.3778,2611.3,2611.2,1.26420279]
[1751995797203,85.6648,2611.3,2611.2,1.26420279]
[1751995797608,55.17,2611.3,2611.2,1.26420279]
[1751995797814,82.456,2611.3,2611.2,1.26420279]
[1751995798003,83.22179,2611.3,2611.2,1.26420279]
[1751995798607,3.2078,2611.4,2611.2,0.49838279]
[1751995798811,3.97358,2611.4,2611.3,1.36154684]
[1751995799014,31.92318,2611.4,2611.3,1.36154684]
[1751995799309,31.92318,2611.4,2611.3,0.59575684]
[1751995799709,28.71438,2611.4,2611.3,0.59575684]
[1751995799909,31.22268,2611.4,2611.3,0.59575684]
[1751995800716,34.43048,2611.4,2611.3,0.59575684]
[1751995800915,31.22268,2611.4,2611.3,1.23135684]
[1751995801110,3.94168,2611.4,2611.3,1.23135684]
[1751995801411,28.9192,2611.4,2611.3,1.99714684]
[1751995801708,27.274,2611.4,2611.3,1.99714684]
[1751995801914,27.9416,2611.4,2611.3,1.99714684]
[1751995802313,29.68296,2611.4,2611.3,0.59855866]
[1751995802711,29.68296,2611.4,2611.3,1.23415866]
[1751995802910,29.68296,2611.4,2611.3,0.59855866]
[1751995803107,29.68296,2611.4,2611.3,1.99994866]
[1751995803316,28.24764805,2611.4,2611.3,1.99994866]
[1751995803513,0.76576,2611.5,2611.4,0.76576]
[1751995803706,3.2078,2612.0,2611.6,0.7657]
[1751995803905,8.02984035,2613.0,2612.2,0.76553]
[1751995803906,3.44136015,2612.3,2612.2,0.76553]
[1751995804112,4.5884802,2612.8,2612.7,0.76538]
[1751995804319,4.5884802,2613.4,2613.3,0.7652]
[1751995804509,1.5047,2613.5,2613.4,0.76517]
[1751995804709,32.8290802,2614.2,2613.9,0.76502]
[1751995804912,28.2406,2614.2,2614.1,0.76497]
[1751995805106,0.9756,2614.5,2614.1,0.6356]
[1751995805418,5.73560025,2615.0,2613.8,8.67988487]
[1751995805419,0.9756,2615.3,2615.0,0.76469]
[1751995805610,2.3873,2615.6,2614.8,3.2078]
[1751995805821,0.9756,2615.9,2615.8,0.76447]
[1751995806106,3.2078,2616.4,2615.7,5.11904]
[1751995806314,3.2078,2616.4,2616.3,0.76433]
[1751995806510,54.521,2616.7,2616.1,3.2078]
[1751995806711,54.521,2616.7,2615.7,6.86848487]
[1751995806712,54.519,2616.8,2616.4,3.2078]
[1751995807015,54.519,2617.0,2616.9,0.76414]
[1751995807212,0.012,2617.1,2617.0,0.76412]
[1751995807407,0.012,2617.1,2617.0,4.93822]
[1751995808009,0.9756,2618.7,2617.5,1.90992]
[1751995808213,55.24561,2618.8,2618.4,3.2078]
[1751995808515,6.05724397,2618.5,2617.8,3.2078]
[1751995808716,9.26504397,2618.1,2617.9,0.59721099]
[1751995808919,9.26504397,2618.1,2617.4,3.2078]
[1751995808920,0.9756,2618.5,2618.0,0.59721164]
[1751995809120,0.9756,2618.5,2618.1,0.59721164]
[1751995809121,54.48,2618.4,2618.1,0.59721164]
[1751995809309,57.6878,2618.3,2618.2,0.59721164]
[1751995809515,54.479,2618.9,2618.2,3.80501164]
[1751995809714,0.9756,2619.1,2617.8,7.96694397]
[1751995809715,54.478,2619.1,2618.8,3.2078]
[1751995810018,54.478,2619.0,2618.9,0.59721164]
[1751995810315,54.478,2619.0,2618.9,1.36078164]
[1751995810817,54.442,2619.3,2619.0,0.76352]
[1751995811014,54.442,2619.3,2619.1,3.80501164]
[1751995811209,54.442,2619.3,2619.2,1.36069164]
[1751995811708,54.442,2619.3,2619.1,3.2078]
[1751995811709,8.2078,2619.3,2618.5,3.2078]
[1751995811915,6.05724397,2619.1,2618.6,0.59685824]
[1751995812213,6.05724397,2619.1,2618.0,1.5119]
[1751995812214,54.44,2619.1,2618.7,3.2078]
[1751995812620,7.03284397,2619.6,2618.8,3.2078]
[1751995812917,9.26504397,2619.3,2618.6,3.2078]
[1751995813115,0.76352,2619.1,2618.6,3.97144]
[1751995813414,0.76352,2619.1,2618.6,3.2078]
[1751995813415,6.82087397,2618.7,2618.6,3.2078]
[1751995813614,63.67404397,2618.7,2618.2,0.9663]
[1751995813815,27.204,2618.6,2618.2,0.9663]
[1751995814014,26.74553076,2618.6,2618.2,0.9663]
[1751995814321,26.74553076,2618.6,2617.6,3.97172]
[1751995814322,9.26504397,2618.4,2617.6,3.97172]
[1751995814619,33.26024397,2618.4,2617.9,3.2078]
[1751995814915,27.203,2618.4,2617.9,3.2078]
[1751995815114,0.76378,2618.2,2617.9,3.2078]
[1751995815316,3.2078,2618.7,2617.9,3.2078]
[1751995815519,27.96667,2618.6,2618.1,0.76378]
[1751995815719,27.96667,2618.6,2618.2,0.76377]
[1751995815918,3.2078,2619.0,2618.3,3.2078]
[1751995816110,0.76354,2619.0,2618.6,0.76365]
[1751995816316,0.76359,2618.9,2618.4,1.4374]
[1751995816618,6.05724397,2618.7,2618.3,3.2078]
[1751995816817,0.76374,2618.4,2618.0,0.76381]
[1751995817011,0.76371,2618.5,2617.9,3.2078]
[1751995817212,0.9756,2618.9,2618.2,3.2078]
[1751995817412,9.26504397,2618.7,2618.2,3.2078]
[1751995817618,0.76386,2617.9,2617.5,4.7143]
[1751995817814,0.7639,2617.8,2617.5,3.97176]
[1751995818016,0.7639,2617.8,2617.5,3.97177]
[1751995818221,0.76389,2617.8,2617.5,3.97176]
[1751995818418,0.76389,2617.8,2617.6,0.76394]
[1751995818715,30.4008,2618.5,2617.5,6.08399]
[1751995818917,0.76373,2618.4,2617.8,3.2078]
[1751995819114,0.7637,2618.5,2618.3,0.76374]
[1751995819318,0.76378,2618.2,2618.0,0.76381]
[1751995819724,0.76376,2618.3,2618.1,0.7638]
[1751995820121,0.76373,2618.4,2618.2,0.76377]
[1751995820312,0.76372,2618.4,2618.2,0.76376]
[1751995820519,1.5289,2618.9,2618.1,3.2078]
[1751995820520,28.1636,2618.8,2618.1,3.2078]
[1751995820723,0.76366,2618.6,2618.4,0.76369]
[1751995820922,28.1636,2618.8,2618.3,0.76373]
[1751995820923,1.4961,2618.7,2618.3,0.76373]
[1751995821127,0.76371,2618.5,2618.4,0.76371]
[1751995821329,0.76371,2618.5,2618.3,0.76372]
[1751995821924,0.76367,2618.6,2618.1,3.2078]
[1751995822125,0.7637,2618.5,2618.2,0.76376]
[1751995822428,0.76372,2618.4,2618.2,0.76376]
[1751995823129,59.2986,2619.0,2618.1,3.2078]
[1751995823329,0.76365,2618.7,2618.5,0.76368]
[1751995823529,1.4644,2618.9,2618.4,0.76371]
[1751995823825,0.76377,2618.2,2618.1,3.2078]
[1751995824028,1.79957,2618.2,2618.1,3.2078]
[1751995824225,0.76377,2618.2,2618.1,3.2078]
[1751995824627,28.2178,2618.6,2618.1,3.2078]
[1751995824930,0.76374,2618.3,2618.2,0.76375]
[1751995825230,0.76373,2618.4,2618.1,3.2078]
[1751995825431,3.2639,2618.5,2618.1,3.2078]
[1751995825626,0.76371,2618.4,2618.3,0.76373]
[1751995825823,0.76367,2618.6,2618.5,0.76368]
[1751995826023,30.3868,2618.7,2618.1,3.2078]
[1751995826221,0.76377,2618.2,2618.1,3.2078]
[1751995826732,0.76388,2617.9,2617.8,3.2078]
[1751995827234,0.76388,2617.9,2617.8,3.97169]
[1751995827531,0.76384,2618.0,2617.9,0.76384]
[1751995827728,0.76386,2617.9,2617.8,3.97167]
[1751995828128,1.79966,2617.9,2617.8,3.2078]
[1751995828731,3.21256,2617.9,2617.8,3.2078]
[1751995828926,0.76386,2617.9,2617.8,3.2078]
[1751995829124,1.79966,2617.9,2617.8,3.2078]
[1751995829535,0.76386,2617.9,2617.8,3.97166]
[1751995829833,0.76386,2617.9,2617.8,3.2078]
[1751995830034,1.79966,2617.9,2617.8,3.2078]
[1751995830632,7.09304397,2617.9,2617.3,3.2078]
[1751995830836,0.76399,2617.5,2617.4,0.76399]
[1751995831031,0.76394,2617.7,2617.6,0.76394]
[1751995831231,0.76393,2617.7,2617.3,5.11786]
[1751995831436,0.76393,2617.7,2617.6,0.76392]
[1751995831932,2.17682,2617.8,2617.3,6.53235]
[1751995832132,0.9548,2618.1,2617.6,3.2078]
[1751995832528,0.76386,2617.9,2617.6,3.2078]
[1751995832734,2.3732,2618.1,2617.7,0.76389]
[1751995832735,0.7639,2617.8,2617.7,0.76389]
[1751995832929,2.3732,2618.1,2617.6,3.2078]
[1751995833134,0.9548,2618.1,2617.7,1.9098]
[1751995833334,0.9548,2618.1,2618.0,0.76383]
[1751995833732,0.7638,2618.2,2618.1,0.76379]
[1751995834239,0.7638,2618.2,2618.1,1.27505045]
[1751995834438,0.76382,2618.1,2618.0,0.76381]
[1751995834639,0.76382,2618.1,2618.0,1.26047279]
[1751995834837,0.76378,2618.2,2618.1,0.76377]
[1751995835032,0.76378,2618.2,2617.8,1.90972]
[1751995835033,3.2078,2618.3,2618.2,0.76377]
[1751995835231,1.4184,2618.6,2618.3,0.76374]
[1751995835232,0.76372,2618.4,2618.3,0.76374]
[1751995835435,0.7637,2618.5,2618.4,0.7637]
[1751995835640,0.76374,2618.4,2618.3,0.76373]
[1751995836036,1.90922,2618.5,2617.9,3.2078]
[1751995836238,0.76383,2618.0,2617.9,0.76385]
[1751995836542,0.76389,2617.8,2617.7,2.14355263]
[1751995836741,3.2078,2617.8,2617.7,4.64231353]
[1751995836934,7.96672397,2618.2,2617.7,1.7348409]
[1751995836935,2.4068,2618.2,2617.7,1.7348409]
[1751995837140,0.76383,2618.0,2617.9,2.4160253]
[1751995837434,0.76383,2618.0,2617.9,4.70161464]
[1751995837846,0.76383,2618.0,2617.9,4.15427427]
[1751995838045,0.76383,2618.0,2617.9,4.70161464]
[1751995838246,0.9548,2618.2,2617.9,1.7348409]
[1751995838541,0.7638,2618.1,2618.0,3.94438097]
[1751995838743,11.46764397,2618.1,2618.0,1.7348409]
[1751995838943,15.70384397,2618.1,2617.8,2.20954007]
[1751995839145,0.76398,2617.5,2617.4,5.31940526]
[1751995839344,3.97178,2617.5,2617.4,5.31940526]
[1751995839546,3.97178,2617.5,2617.4,5.45566838]
[1751995839547,1.29628198,2617.5,2617.4,5.45566838]
[1751995839741,1.29628198,2617.5,2617.4,1.0323]
[1751995839742,2.73508198,2617.5,2617.4,1.0323]
[1751995839943,1.90912,2618.7,2617.4,6.05724397]
[1751995840145,1.9906,2618.2,2618.1,0.7638]
[1751995840549,1.0358,2618.2,2618.1,0.7638]
[1751995841945,0.76364,2618.7,2618.6,0.76365]
[1751995842140,3.2078,2618.8,2618.3,3.2078]
[1751995842341,3.97141,2618.8,2618.6,0.76364]
[1751995842746,0.76361,2618.8,2618.6,0.76364]
[1751995842945,0.76363,2618.7,2618.6,0.76364]
[1751995843446,0.76363,2618.7,2618.1,3.35139]
[1751995843447,0.7638,2618.1,2618.0,3.2078]
[1751995843652,0.76379,2618.2,2618.0,3.2078]
[1751995843841,0.76374,2618.3,2618.0,3.2078]
[1751995844044,0.76374,2618.3,2618.1,0.76377]
[1751995844247,0.76374,2618.4,2618.2,0.76377]
[1751995844453,0.76374,2618.4,2618.3,3.2078]
[1751995844650,0.76367,2618.6,2618.3,3.2078]
[1751995844851,0.76368,2618.6,2618.4,0.7637]
[1751995845045,0.76371,2618.4,2618.3,3.2078]
[1751995845246,0.7637,2618.5,2618.3,3.2078]
[1751995845543,0.76371,2618.4,2618.3,3.97152]
[1751995846345,0.76371,2618.4,2618.3,3.2078]
[1751995846947,31.7812,2618.7,2618.3,3.97153]
[1751995847148,0.76371,2618.4,2618.3,3.2078]
[1751995847349,0.76371,2618.4,2618.1,0.7638]
[1751995847350,1.0358,2618.4,2618.1,0.7638]
[1751995847545,0.76379,2618.2,2618.1,0.7638]
[1751995848152,33.32671,2618.7,2618.0,3.2078]
[1751995848354,2.49,2618.6,2618.3,0.76374]
[1751995848549,0.76371,2618.4,2618.3,0.76374]
[1751995848754,0.76376,2618.3,2618.2,0.76376]
[1751995848956,0.76378,2618.2,2618.1,0.76378]
[1751995849656,0.76375,2618.3,2618.2,0.76376]
[1751995849856,0.76373,2618.4,2618.3,0.76373]
[1751995850653,0.76376,2618.3,2618.2,0.76375]
[1751995850957,0.76378,2618.2,2618.1,0.76378]
[1751995851250,1.90924,2618.5,2618.0,3.2078]
[1751995851456,2.25433,2618.4,2618.3,0.76374]
[1751995851659,0.76376,2618.3,2618.2,0.76375]
[1751995851855,0.76376,2618.3,2617.7,3.38739]
[1751995851856,6.15298,2618.3,2617.7,3.2078]
[1751995852046,0.76389,2617.8,2617.7,3.2078]
[1751995852447,0.76385,2618.0,2617.9,0.76384]
[1751995852851,28.6596,2618.2,2617.8,0.76387]
[1751995852852,0.76387,2617.9,2617.8,0.76387]
[1751995853053,0.76384,2618.0,2617.9,0.76383]
[1751995853758,0.7638,2618.1,2618.0,0.7638]
[1751995853957,0.76388,2617.9,2617.8,0.76387]
[1751995854552,28.6596,2618.2,2617.7,3.2078]
[1751995854756,0.76388,2617.9,2617.7,3.2078]
[1751995854959,0.76388,2617.9,2617.8,0.76387]
[1751995855358,0.76385,2618.0,2617.9,0.76384]
[1751995855660,0.76388,2617.9,2617.8,0.76387]
[1751995856763,0.76389,2617.8,2617.7,3.2078]
[1751995857260,0.76398,2617.5,2617.4,0.76399]
[1751995857462,1.4995,2617.9,2617.6,0.76393]
[1751995857760,0.7638,2618.1,2617.5,3.2078]
[1751995857959,1.90936,2618.3,2617.8,3.2078]
[1751995858162,0.76376,2618.3,2618.2,0.76374]
[1751995858359,3.2078,2618.5,2618.3,0.76372]
[1751995858555,3.2078,2618.5,2617.9,2.4324]
[1751995858556,0.76378,2618.3,2618.2,0.76375]
[1751995859359,0.76378,2618.3,2618.1,3.2078]
[1751995859360,0.76377,2618.2,2618.1,3.2078]
[1751995859555,0.76388,2617.9,2617.8,0.76387]
[1751995859760,0.76382,2618.1,2618.0,0.76383]
[1751995860058,3.2078,2618.5,2617.9,0.76384]
[1751995860059,0.76384,2618.0,2617.9,0.76384]
[1751995860259,0.76382,2618.1,2618.0,0.76383]
[1751995860456,1.9093,2618.4,2618.0,0.76383]
[1751995860661,29.07821,2618.6,2617.9,3.2078]
[1751995860863,0.7639,2617.8,2617.7,0.7639]
[1751995861063,0.76388,2617.9,2617.8,0.76388]
[1751995861264,0.7639,2617.8,2617.7,0.7639]
[1751995861567,0.76392,2617.7,2617.6,3.2078]
[1751995861867,1.4612,2617.7,2617.6,3.97175]
[1751995862064,28.2094,2618.1,2617.6,3.2078]
[1751995862262,0.76389,2617.9,2617.8,0.76388]
[1751995862462,27.169,2618.1,2617.6,3.2078]
[1751995862463,1.5235,2618.0,2617.6,3.2078]
[1751995862662,0.76392,2617.7,2617.6,3.2078]
[1751995864364,0.76401,2617.4,2617.3,6.52451525]
[1751995864563,2.95025,2617.7,2617.4,0.764]
[1751995864564,0.76399,2617.5,2617.4,0.764]
[1751995864965,0.76401,2617.4,2617.3,3.97181]
[1751995865665,0.76401,2617.4,2617.3,3.2078]
[1751995866467,0.76401,2617.4,2617.3,3.97183]
[1751995866668,0.764,2617.5,2617.3,3.97182]
[1751995866969,0.76401,2617.4,2617.3,3.97182]
[1751995867161,0.76399,2617.5,2617.4,0.76399]
[1751995867870,1.90973,2617.8,2617.3,3.2078]
[1751995868070,0.76401,2617.4,2617.3,3.2078]
[1751995868563,0.76412,2617.1,2616.9,3.2078]
[1751995868764,0.76415,2616.9,2616.8,3.31671525]
[1751995868960,0.76415,2616.9,2616.4,4.42336838]
[1751995868961,1.91053,2616.8,2616.4,4.42336838]
[1751995869163,0.76427,2616.5,2616.4,4.42336838]
[1751995869370,28.5819,2616.8,2616.5,0.76426]
[1751995869562,0.7643,2616.4,2616.3,4.42336838]
[1751995870064,0.76433,2616.3,2616.2,4.42336838]
[1751995870269,0.76436,2616.2,2616.1,7.63116838]
[1751995870467,0.76436,2616.2,2616.1,3.2078]
[1751995871069,0.76436,2616.2,2615.7,7.63116838]
[1751995871260,0.76436,2616.2,2616.1,2.21091995]
[1751995871662,3.9721,2616.5,2616.1,0.9439]
[1751995871970,0.76433,2616.3,2616.2,0.76436]
[1751995872167,0.9554,2616.6,2616.2,0.76434]
[1751995872367,0.9554,2616.6,2616.5,0.76427]
[1751995872574,0.9554,2616.6,2616.5,1.70817]
[1751995872776,0.9554,2616.6,2616.5,0.76427]
[1751995873067,0.9554,2616.6,2616.5,1.70817]
[1751995873266,0.9554,2616.6,2616.5,6.70817]
[1751995873663,0.9554,2616.6,2616.5,8.12637]
[1751995873861,1.4602,2617.3,2617.2,0.76406]
[1751995874062,0.76405,2617.3,2616.9,3.2078]
[1751995874267,27.175,2617.4,2616.9,3.2078]
[1751995874268,27.175,2617.4,2616.9,4.1517]
[1751995874475,0.7641,2617.1,2616.9,3.2078]
[1751995874669,0.76408,2617.2,2616.9,3.2078]
[1751995874876,0.76412,2617.0,2616.9,3.2078]
[1751995875071,0.7643,2616.4,2616.3,4.916]
[1751995875270,0.7643,2616.4,2616.3,3.2078]
[1751995875568,1.0404,2617.4,2616.8,0.76417]
[1751995875774,0.76414,2617.0,2616.8,3.97197]
[1751995876169,0.76415,2616.9,2616.8,3.97197]
[1751995876365,0.76415,2616.9,2616.8,3.2078]
[1751995876778,1.91019,2617.2,2616.5,3.2078]
[1751995876779,0.76425,2616.6,2616.5,3.2078]
[1751995877275,0.76433,2616.3,2616.2,4.5952]
[1751995877469,0.76433,2616.3,2616.2,1.3874]
[1751995877666,0.7644,2616.1,2616.0,0.76441]
[1751995878271,1.91077,2616.4,2616.0,0.76439]
[1751995878473,1.80465,2616.6,2616.1,0.76438]
[1751995878772,0.76441,2616.0,2615.9,3.2078]
[1751995878965,0.76441,2616.0,2615.9,3.97224]
[1751995879165,0.76441,2616.0,2615.9,3.2078]
[1751995880576,0.76441,2616.0,2615.9,3.97224]
[1751995881970,4.38862,2616.5,2615.9,3.97224]
[1751995881971,0.76441,2616.1,2616.0,0.7644]
[1751995882372,28.5622,2616.7,2616.0,0.7644]
[1751995882373,4.2863,2616.8,2616.0,0.941]
[1751995882673,0.76434,2616.3,2616.2,3.2078]
[1751995882876,0.76434,2616.3,2616.2,3.97216]
[1751995883176,0.76434,2616.3,2616.2,3.2078]
[1751995883373,0.76434,2616.3,2616.2,3.97216]
[1751995883973,0.76432,2616.4,2616.3,0.76431]
[1751995884280,0.76433,2616.3,2616.2,3.97214]
[1751995884672,0.76433,2616.3,2616.2,3.2078]
[1751995884872,4.6614,2616.7,2616.2,3.2078]
[1751995885078,0.76432,2616.4,2616.3,0.76431]
[1751995885473,0.0461,2616.8,2616.2,3.2078]
[1751995885667,55.026,2617.9,2616.7,3.97201]
[1751995885668,4.83074064,2617.6,2616.7,3.97201]
[1751995885979,6.74064064,2617.6,2617.0,3.2078]
[1751995886171,8.19604064,2617.6,2617.2,0.76406]
[1751995886372,0.76405,2617.3,2617.2,0.76406]
[1751995886570,0.76409,2617.1,2617.0,3.97191]
[1751995886779,0.76409,2617.1,2617.0,3.2078]
[1751995887076,1.91033,2617.0,2616.4,4.7331]
[1751995887277,1.4551,2617.0,2616.6,0.76422]
[1751995887475,0.76421,2616.7,2616.6,0.76422]
[1751995888079,0.76424,2616.6,2616.5,0.76425]
[1751995888275,0.76427,2616.5,2616.4,3.97209]
[1751995888575,5.1182,2616.9,2616.1,6.3854206]
[1751995888576,1.91055,2616.7,2616.3,0.76431]
[1751995888777,0.7643,2616.5,2616.3,0.76431]
[1751995888976,0.76429,2616.5,2616.1,3.2078]
[1751995889176,0.76427,2616.5,2616.4,0.7643]
[1751995889383,0.76427,2616.5,2616.4,0.76427]
[1751995889678,0.76425,2616.6,2616.5,0.76426]
[1751995889879,0.76427,2616.5,2616.4,0.76429]
[1751995890478,27.174,2616.9,2616.4,3.2078]
[1751995890674,0.76425,2616.6,2616.4,3.2078]
[1751995890879,27.174,2616.9,2616.4,3.2078]
[1751995891079,30.5912,2616.9,2616.4,3.97207]
[1751995891280,0.76427,2616.5,2616.4,3.97207]
[1751995891484,0.76425,2616.6,2616.5,0.76425]
[1751995891683,0.76427,2616.5,2616.4,3.97208]
[1751995891983,0.76426,2616.6,2616.4,3.2078]
[1751995892178,0.76426,2616.6,2616.5,0.76427]
[1751995892478,0.76426,2616.6,2616.4,3.2078]
[1751995892685,0.76424,2616.6,2616.5,0.76427]
[1751995893086,1.91024,2617.1,2616.7,0.76418]
[1751995893384,4.2402,2617.2,2616.4,3.97207]
[1751995893385,30.11473,2617.0,2616.4,3.97207]
[1751995893582,0.76427,2616.5,2616.4,3.97207]
[1751995894377,1.4534,2616.9,2616.4,3.2078]
[1751995894583,3.2078,2617.2,2616.6,5.4444206]
[1751995894783,5.11798,2617.2,2616.8,0.76418]
[1751995894985,0.76418,2616.9,2616.8,0.76418]
[1751995895384,0.76408,2617.2,2617.1,0.76407]
[1751995895588,0.76408,2617.2,2617.1,3.97187]
[1751995896284,0.76408,2617.2,2617.1,3.2078]
[1751995896489,28.6911,2617.4,2617.0,0.7641]
[1751995896680,0.7641,2617.1,2617.0,0.7641]
[1751995896880,28.6911,2617.4,2616.7,3.2078]
[1751995897191,0.76419,2616.8,2616.7,0.7642]
[1751995897380,0.76424,2616.6,2616.5,3.97207]
[1751995897584,0.76424,2616.6,2616.5,3.2078]
[1751995897781,0.76424,2616.6,2616.5,3.97207]
[1751995897988,0.76423,2616.7,2616.5,3.2078]
[1751995898183,0.76418,2616.8,2616.7,0.76421]
[1751995898388,0.76422,2616.7,2616.6,0.76422]
[1751995898690,0.76422,2616.7,2616.5,4.1488]
[1751995898691,0.76424,2616.6,2616.5,4.91305]
[1751995898890,0.76422,2616.7,2616.6,0.76422]
[1751995899288,0.76424,2616.6,2616.5,4.91305]
[1751995899598,0.76424,2616.6,2616.5,3.2078]
[1751995899992,0.76424,2616.6,2616.5,3.97207]
[1751995900999,3.31877,2617.2,2616.8,0.76417]
[1751995901196,0.7642,2616.8,2616.7,0.76419]
[1751995901588,0.76421,2616.7,2616.6,2.25062]
[1751995901794,0.76424,2616.6,2616.5,3.97204]
[1751995901993,0.76421,2616.8,2616.7,0.7642]
[1751995902198,0.76423,2616.7,2616.6,0.76422]
[1751995902601,0.76419,2616.8,2616.7,0.76418]
[1751995902995,0.76424,2616.7,2616.6,0.76422]
[1751995903299,0.76424,2616.7,2616.6,1.70522]
[1751995904601,0.7642,2616.8,2616.7,0.76418]
[1751995904798,0.76404,2617.4,2617.3,0.76402]
[1751995905003,4.6084,2617.6,2617.3,0.6453]
[1751995905004,5.1177,2617.6,2617.3,0.6453]
[1751995905195,1.4104,2617.4,2617.3,0.6453]
[1751995907998,0.764,2617.4,2617.3,1.40933]
[1751995908202,0.764,2617.4,2617.3,2.35033]
[1751995908400,1.4104,2617.4,2617.3,0.6453]
[1751995908801,0.76406,2617.2,2617.1,3.2078]
[1751995909099,0.76406,2617.2,2617.1,4.61719]
[1751995909399,0.76406,2617.2,2617.1,3.8531]
[1751995910004,0.76405,2617.3,2617.2,0.76405]
[1751995910200,0.76407,2617.2,2617.1,3.2078]
[1751995910604,1.41637,2617.2,2617.1,3.2078]
[1751995910905,1.41637,2617.2,2616.8,0.941]
[1751995910906,0.76415,2616.9,2616.8,3.2078]
[1751995911106,0.76415,2616.9,2616.8,4.64886]
[1751995911795,2.94258,2617.2,2616.8,4.64886]
[1751995911796,0.76414,2617.0,2616.8,3.8847]
[1751995912001,0.76414,2617.0,2616.9,0.76412]
[1751995912202,0.76414,2617.0,2616.9,2.38202]
[1751995912403,0.76409,2617.2,2617.1,0.76407]
[1751995912603,1.41639,2617.2,2617.1,3.8847]
[1751995912798,1.41639,2617.2,2617.1,3.2078]
[1751995913004,0.76418,2616.9,2616.8,3.2078]
[1751995913204,0.76418,2616.9,2616.8,4.64888]
[1751995913406,0.76412,2617.1,2617.0,0.7641]
[1751995913907,0.76409,2617.2,2617.1,0.76407]
[1751995914102,0.76409,2617.2,2617.1,3.97187]
[1751995914298,0.76405,2617.4,2617.3,0.76402]
[1751995914505,0.76405,2617.4,2617.2,0.76405]
[1751995914506,0.76407,2617.3,2617.2,0.76405]
[1751995914709,0.76403,2617.4,2617.3,0.76403]
[1751995914907,0.76406,2617.3,2617.2,0.76406]
[1751995915305,0.6523,2617.4,2617.3,0.76404]
[1751995915306,0.76403,2617.4,2617.3,0.76404]
[1751995915610,0.76394,2617.7,2617.6,0.76392]
[1751995915807,1.41624,2617.7,2617.6,3.2078]
[1751995916207,1.41624,2617.7,2617.6,3.97175]
[1751995916409,0.76394,2617.7,2617.6,3.97175]
[1751995916608,0.76394,2617.7,2617.6,4.64865]
[1751995916807,1.41624,2617.7,2617.6,3.8847]
[1751995917000,1.41624,2617.7,2617.6,3.2078]
[1751995917200,1.41624,2617.7,2617.6,4.64865]
[1751995917406,1.41624,2617.7,2617.6,0.6769]
[1751995918112,0.76401,2617.4,2617.3,3.97181]
[1751995918315,1.41631,2617.4,2617.3,3.8847]
[1751995918515,0.6523,2617.4,2617.3,4.64874]